[Event "Early-Titled-Tuesday-Blitz-March-05-2024"]
[Site "Chess.com"]
[Date "2024.03.05"]
[Round "1"]
[White "Casper"]
[Black "Azerichess"]
[Result "0-1"]
[WhiteElo "2516"]
[BlackElo "3049"]
[TimeControl "180+1"]
[EndTime "8:01:47 PST"]
[Termination "Azerichess won by resignation"]

1. e4 {[%clk 0:03:00.9]} 1... d5 {[%clk 0:02:59.8]} 2. exd5 {[%clk 0:03:00.9]}
2... Qxd5 {[%clk 0:03:00.7]} 3. Nc3 {[%clk 0:03:01.3]} 3... Qa5 {[%clk
0:03:01.1]} 4. Nf3 {[%clk 0:03:01.6]} 4... Nf6 {[%clk 0:03:01.6]} 5. Bc4 {[%clk
0:03:01.5]} 5... Bf5 {[%clk 0:03:01.8]} 6. O-O {[%clk 0:03:01.8]} 6... e6 {[%clk
0:03:02]} 7. Re1 {[%clk 0:03:02.1]} 7... Nc6 {[%clk 0:03:00.4]} 8. d3 {[%clk
0:02:58.5]} 8... O-O-O {[%clk 0:02:58.7]} 9. Bd2 {[%clk 0:02:57.4]} 9... Bg4
{[%clk 0:02:53.5]} 10. Nb5 {[%clk 0:02:54.6]} 10... Qb6 {[%clk 0:02:52.9]} 11.
a4 {[%clk 0:02:52.3]} 11... a6 {[%clk 0:02:48.3]} 12. a5 {[%clk 0:02:51.2]}
12... Qc5 {[%clk 0:02:48.6]} 13. Be3 {[%clk 0:02:51.7]} 13... Qh5 {[%clk
0:02:47.1]} 14. Nc3 {[%clk 0:02:44.3]} 14... Ne5 {[%clk 0:02:43.2]} 15. Bf4
{[%clk 0:02:25]} 15... Nxf3+ {[%clk 0:02:42.8]} 16. gxf3 {[%clk 0:02:25.4]}
16... Bxf3 {[%clk 0:02:43.7]} 17. Qd2 {[%clk 0:02:25.9]} 17... Qh3 {[%clk
0:02:39.6]} 0-1

[Event "Early-Titled-Tuesday-Blitz-March-05-2024"]
[Site "Chess.com"]
[Date "2024.03.05"]
[Round "1"]
[White "knightinshiningarmour16"]
[Black "Kislov_Oleg"]
[Result "0-1"]
[WhiteElo "2228"]
[BlackElo "2578"]
[TimeControl "180+1"]
[EndTime "8:02:47 PST"]
[Termination "Kislov_Oleg won by resignation"]

1. e4 {[%clk 0:02:46]} 1... e6 {[%clk 0:02:58.7]} 2. Nf3 {[%clk 0:02:45.4]} 2...
d5 {[%clk 0:02:58.7]} 3. e5 {[%clk 0:02:45.6]} 3... c5 {[%clk 0:02:57.6]} 4. d4
{[%clk 0:02:44.7]} 4... cxd4 {[%clk 0:02:57.1]} 5. Nxd4 {[%clk 0:02:45.6]} 5...
Nc6 {[%clk 0:02:56.9]} 6. Nxc6 {[%clk 0:02:42.1]} 6... bxc6 {[%clk 0:02:56.9]}
7. Be2 {[%clk 0:02:41.7]} 7... Ba6 {[%clk 0:02:49.7]} 8. Bxa6 {[%clk 0:02:41]}
8... Qa5+ {[%clk 0:02:49.5]} 9. Bd2 {[%clk 0:02:39.6]} 9... Qxa6 {[%clk
0:02:49.5]} 10. Qe2 {[%clk 0:02:39.8]} 10... Qxe2+ {[%clk 0:02:47.8]} 11. Kxe2
{[%clk 0:02:39.8]} 11... Rb8 {[%clk 0:02:48]} 12. b3 {[%clk 0:02:39.1]} 12...
Ne7 {[%clk 0:02:37.1]} 13. f4 {[%clk 0:02:38.8]} 13... h5 {[%clk 0:02:33.1]} 14.
Nc3 {[%clk 0:02:37.2]} 14... Nf5 {[%clk 0:02:32.4]} 15. Be3 {[%clk 0:02:35.5]}
15... d4 {[%clk 0:02:27.2]} 16. Bxd4 {[%clk 0:02:34.3]} 16... Nxd4+ {[%clk
0:02:27]} 17. Kd3 {[%clk 0:02:35.2]} 17... Nf5 {[%clk 0:02:22.7]} 18. Ne4 {[%clk
0:02:34.9]} 18... Be7 {[%clk 0:02:20.6]} 19. c4 {[%clk 0:02:34.9]} 19... O-O
{[%clk 0:02:16.5]} 20. c5 {[%clk 0:02:35.1]} 20... Rfd8+ {[%clk 0:02:16]} 21.
Nd6 {[%clk 0:02:35.4]} 21... Bxd6 {[%clk 0:02:10.4]} 22. exd6 {[%clk 0:02:34.5]}
22... a5 {[%clk 0:02:07.2]} 23. h3 {[%clk 0:02:34.2]} 23... Rb4 {[%clk
0:02:05.3]} 24. Rhf1 {[%clk 0:02:34.5]} 24... Rd4+ {[%clk 0:02:05.2]} 25. Ke2
{[%clk 0:02:34.5]} 25... Rd5 {[%clk 0:02:02.9]} 26. Rac1 {[%clk 0:02:34.7]}
26... Ng3+ {[%clk 0:02:03]} 0-1

[Event "Early-Titled-Tuesday-Blitz-March-05-2024"]
[Site "Chess.com"]
[Date "2024.03.05"]
[Round "1"]
[White "ThePeacefulPanda"]
[Black "Rud_2008"]
[Result "0-1"]
[WhiteElo "2427"]
[BlackElo "2728"]
[TimeControl "180+1"]
[EndTime "8:03:25 PST"]
[Termination "Rud_2008 won by resignation"]

1. Nf3 {[%clk 0:03:00.9]} 1... d5 {[%clk 0:02:59.8]} 2. d4 {[%clk 0:03:01.8]}
2... Nf6 {[%clk 0:02:59.3]} 3. c4 {[%clk 0:03:02.7]} 3... e6 {[%clk 0:02:59.6]}
4. Nc3 {[%clk 0:03:03.4]} 4... Bb4 {[%clk 0:02:58.9]} 5. Bg5 {[%clk 0:03:04]}
5... h6 {[%clk 0:02:58.4]} 6. Bxf6 {[%clk 0:03:02.1]} 6... Qxf6 {[%clk
0:02:59.3]} 7. cxd5 {[%clk 0:03:02.6]} 7... exd5 {[%clk 0:02:59.3]} 8. Qb3
{[%clk 0:03:03]} 8... Qb6 {[%clk 0:02:57.5]} 9. a3 {[%clk 0:02:57.1]} 9... Ba5
{[%clk 0:02:49.2]} 10. Qxb6 {[%clk 0:02:55.3]} 10... axb6 {[%clk 0:02:48.5]} 11.
e3 {[%clk 0:02:56.2]} 11... c6 {[%clk 0:02:48.1]} 12. Bd3 {[%clk 0:02:53.6]}
12... b5 {[%clk 0:02:47.6]} 13. Kd2 {[%clk 0:02:54]} 13... Nd7 {[%clk
0:02:46.1]} 14. b4 {[%clk 0:02:53]} 14... Bc7 {[%clk 0:02:44.8]} 15. a4 {[%clk
0:02:53.5]} 15... bxa4 {[%clk 0:02:39.3]} 16. b5 {[%clk 0:02:41.3]} 16... a3
{[%clk 0:02:38]} 17. bxc6 {[%clk 0:02:40]} 17... bxc6 {[%clk 0:02:38.9]} 18.
Rhb1 {[%clk 0:02:39.9]} 18... O-O {[%clk 0:02:38.3]} 19. Rb3 {[%clk 0:02:39.3]}
19... Bd6 {[%clk 0:02:36.5]} 20. Nb1 {[%clk 0:02:39.3]} 20... c5 {[%clk
0:02:15.2]} 21. dxc5 {[%clk 0:02:32.9]} 21... Nxc5 {[%clk 0:02:12.1]} 22. Rbxa3
{[%clk 0:02:03.7]} 22... Rxa3 {[%clk 0:01:41.5]} 23. Nxa3 {[%clk 0:02:00.2]}
23... Nb3+ {[%clk 0:01:41.3]} 0-1

[Event "Early-Titled-Tuesday-Blitz-March-05-2024"]
[Site "Chess.com"]
[Date "2024.03.05"]
[Round "1"]
[White "FredddieCroderg"]
[Black "rnanjo"]
[Result "1-0"]
[WhiteElo "2273"]
[BlackElo "2574"]
[TimeControl "180+1"]
[EndTime "8:03:35 PST"]
[Termination "FredddieCroderg won by checkmate"]

1. e4 {[%clk 0:02:54.2]} 1... g6 {[%clk 0:02:59.9]} 2. h4 {[%clk 0:02:53.1]}
2... d5 {[%clk 0:02:59.4]} 3. e5 {[%clk 0:02:52.6]} 3... Bg7 {[%clk 0:02:56.1]}
4. d4 {[%clk 0:02:52.3]} 4... c5 {[%clk 0:02:56.4]} 5. c3 {[%clk 0:02:51.5]}
5... h5 {[%clk 0:02:53.5]} 6. Qb3 {[%clk 0:02:46.2]} 6... Nc6 {[%clk 0:02:47.9]}
7. Ne2 {[%clk 0:02:43]} 7... Nh6 {[%clk 0:02:27.8]} 8. Bg5 {[%clk 0:02:40.4]}
8... Nf5 {[%clk 0:02:22.4]} 9. dxc5 {[%clk 0:02:36.6]} 9... Nxe5 {[%clk
0:02:19.1]} 10. Nd4 {[%clk 0:02:31.5]} 10... Nxd4 {[%clk 0:02:13.7]} 11. cxd4
{[%clk 0:02:29.6]} 11... Nc6 {[%clk 0:02:14.1]} 12. Bb5 {[%clk 0:02:23.9]} 12...
Bxd4 {[%clk 0:02:07.4]} 13. Nc3 {[%clk 0:02:23.6]} 13... Be6 {[%clk 0:01:51.2]}
14. O-O-O {[%clk 0:02:22.3]} 14... Bxc5 {[%clk 0:01:46.1]} 15. Nxd5 {[%clk
0:02:20.8]} 15... Qc8 {[%clk 0:01:25.4]} 16. Qc3 {[%clk 0:02:05.1]} 16... f6
{[%clk 0:01:16.6]} 17. Qxc5 {[%clk 0:02:03.5]} 17... fxg5 {[%clk 0:01:14.2]} 18.
Qxe7# {[%clk 0:02:02.2]} 1-0

[Event "Early-Titled-Tuesday-Blitz-March-05-2024"]
[Site "Chess.com"]
[Date "2024.03.05"]
[Round "1"]
[White "almaguerjm"]
[Black "ValentunHulka"]
[Result "1-0"]
[WhiteElo "2461"]
[BlackElo "2773"]
[TimeControl "180+1"]
[EndTime "8:03:45 PST"]
[Termination "almaguerjm won by resignation"]

1. d4 {[%clk 0:03:00.9]} 1... d5 {[%clk 0:02:59.6]} 2. Nf3 {[%clk 0:02:59.6]}
2... Nf6 {[%clk 0:02:59.6]} 3. Nc3 {[%clk 0:02:56.9]} 3... a6 {[%clk 0:02:57.7]}
4. g3 {[%clk 0:02:55.2]} 4... c5 {[%clk 0:02:55.7]} 5. Bg2 {[%clk 0:02:56.1]}
5... cxd4 {[%clk 0:02:56]} 6. Nxd4 {[%clk 0:02:56.9]} 6... e5 {[%clk 0:02:56.3]}
7. Nb3 {[%clk 0:02:57.3]} 7... d4 {[%clk 0:02:56.6]} 8. Ne4 {[%clk 0:02:57.5]}
8... Nxe4 {[%clk 0:02:56.6]} 9. Bxe4 {[%clk 0:02:58.4]} 9... Be7 {[%clk
0:02:56.1]} 10. e3 {[%clk 0:02:54.2]} 10... Nc6 {[%clk 0:02:54.3]} 11. Bxc6+
{[%clk 0:02:53.5]} 11... bxc6 {[%clk 0:02:54.6]} 12. exd4 {[%clk 0:02:53.4]}
12... Qd5 {[%clk 0:02:51.6]} 13. f3 {[%clk 0:02:53.1]} 13... exd4 {[%clk
0:02:42.7]} 14. Qxd4 {[%clk 0:02:53]} 14... Be6 {[%clk 0:02:17.4]} 15. Qxd5
{[%clk 0:02:49.2]} 15... Bxd5 {[%clk 0:02:18.3]} 16. Kf2 {[%clk 0:02:38]} 16...
a5 {[%clk 0:02:17]} 17. Re1 {[%clk 0:02:33.4]} 17... a4 {[%clk 0:02:16.6]} 18.
Nc5 {[%clk 0:02:30.5]} 18... Kd8 {[%clk 0:02:17]} 19. Be3 {[%clk 0:02:25.8]}
19... Bf6 {[%clk 0:02:11.4]} 20. Rad1 {[%clk 0:02:22.3]} 20... Kc7 {[%clk
0:02:11.9]} 21. Bf4+ {[%clk 0:02:19.1]} 21... Kb6 {[%clk 0:02:12]} 22. Nd7+
{[%clk 0:02:19.5]} 22... Kb5 {[%clk 0:02:12.5]} 23. Nxf6 {[%clk 0:02:17.9]}
23... gxf6 {[%clk 0:02:13.4]} 24. b3 {[%clk 0:02:17.3]} 24... axb3 {[%clk
0:02:13.7]} 25. axb3 {[%clk 0:02:16.6]} 25... Ra2 {[%clk 0:02:14.1]} 26. Rd2
{[%clk 0:02:14.7]} 26... Be6 {[%clk 0:02:14.6]} 27. c4+ {[%clk 0:02:01.2]} 27...
Kb4 {[%clk 0:02:14.8]} 28. Rxa2 {[%clk 0:02:00.7]} 28... Kxb3 {[%clk 0:02:15.4]}
29. Rd2 {[%clk 0:01:51.8]} 29... Kxc4 {[%clk 0:02:15]} 30. Rc1+ {[%clk
0:01:50.7]} 30... Kb3 {[%clk 0:02:14.4]} 31. Rxc6 {[%clk 0:01:44.1]} 31... Ra8
{[%clk 0:02:12.9]} 32. Bh6 {[%clk 0:01:39.3]} 32... Ra1 {[%clk 0:02:10.6]} 33.
Bg7 {[%clk 0:01:37.6]} 33... Rh1 {[%clk 0:02:10]} 34. Ke3 {[%clk 0:01:34.4]}
34... Rc1 {[%clk 0:02:10.6]} 35. Rxc1 {[%clk 0:01:32.2]} 1-0

[Event "Early-Titled-Tuesday-Blitz-March-05-2024"]
[Site "Chess.com"]
[Date "2024.03.05"]
[Round "1"]
[White "nrvisakh"]
[Black "Eliwood44"]
[Result "1-0"]
[WhiteElo "2915"]
[BlackElo "2486"]
[TimeControl "180+1"]
[EndTime "8:03:46 PST"]
[Termination "nrvisakh won by resignation"]

1. e4 {[%clk 0:03:00.9]} 1... e5 {[%clk 0:02:58.1]} 2. Nf3 {[%clk 0:03:00.6]}
2... Nc6 {[%clk 0:02:58.8]} 3. Bc4 {[%clk 0:02:59]} 3... Bc5 {[%clk 0:02:58.9]}
4. c3 {[%clk 0:02:58.7]} 4... Nf6 {[%clk 0:02:59.1]} 5. d4 {[%clk 0:02:58.7]}
5... exd4 {[%clk 0:02:58.4]} 6. e5 {[%clk 0:02:59.3]} 6... d5 {[%clk 0:02:57.8]}
7. Bb5 {[%clk 0:02:59.5]} 7... Ne4 {[%clk 0:02:55.5]} 8. cxd4 {[%clk 0:02:59.4]}
8... Bb4+ {[%clk 0:02:55.8]} 9. Bd2 {[%clk 0:02:55.8]} 9... Bxd2+ {[%clk
0:02:55.4]} 10. Nbxd2 {[%clk 0:02:55.6]} 10... O-O {[%clk 0:02:54.8]} 11. O-O
{[%clk 0:02:44.3]} 11... f6 {[%clk 0:02:49.1]} 12. Bxc6 {[%clk 0:02:32.7]} 12...
bxc6 {[%clk 0:02:47.1]} 13. exf6 {[%clk 0:02:32.7]} 13... Nxf6 {[%clk
0:02:40.8]} 14. Ne5 {[%clk 0:02:31.9]} 14... c5 {[%clk 0:02:32.7]} 15. dxc5
{[%clk 0:02:27.1]} 15... Qe7 {[%clk 0:02:30.1]} 16. Ndf3 {[%clk 0:02:05.9]}
16... Qxc5 {[%clk 0:02:26.2]} 17. Rc1 {[%clk 0:02:05.9]} 17... Qe7 {[%clk
0:02:21.1]} 18. Re1 {[%clk 0:02:03.2]} 18... Bb7 {[%clk 0:02:18.3]} 19. Qb3
{[%clk 0:02:01.4]} 19... Rab8 {[%clk 0:02:15.7]} 20. Nc6 {[%clk 0:01:44.4]}
20... Bxc6 {[%clk 0:02:10]} 21. Rxe7 {[%clk 0:01:42.7]} 21... Rxb3 {[%clk
0:02:07.7]} 22. axb3 {[%clk 0:01:43.6]} 22... Be8 {[%clk 0:01:56.3]} 23. Rcxc7
{[%clk 0:01:42.1]} 23... Bf7 {[%clk 0:01:55.7]} 24. Ne5 {[%clk 0:01:38.4]} 24...
Ne8 {[%clk 0:01:55.9]} 25. Rxf7 {[%clk 0:01:33.1]} 1-0

[Event "Early-Titled-Tuesday-Blitz-March-05-2024"]
[Site "Chess.com"]
[Date "2024.03.05"]
[Round "1"]
[White "betta2004"]
[Black "PawnEatingZombie"]
[Result "1-0"]
[WhiteElo "2566"]
[BlackElo "2192"]
[TimeControl "180+1"]
[EndTime "8:03:47 PST"]
[Termination "betta2004 won by resignation"]

1. d4 {[%clk 0:02:52.2]} 1... Nf6 {[%clk 0:02:59]} 2. Nc3 {[%clk 0:02:52.5]}
2... g6 {[%clk 0:02:59.5]} 3. e4 {[%clk 0:02:52.6]} 3... d6 {[%clk 0:02:59.7]}
4. Bf4 {[%clk 0:02:53]} 4... Bg7 {[%clk 0:02:59.7]} 5. Qd2 {[%clk 0:02:53.3]}
5... a6 {[%clk 0:02:55.2]} 6. O-O-O {[%clk 0:02:51.3]} 6... b5 {[%clk
0:02:54.5]} 7. f3 {[%clk 0:02:51]} 7... Nbd7 {[%clk 0:02:53]} 8. Bh6 {[%clk
0:02:46]} 8... Bxh6 {[%clk 0:02:52.3]} 9. Qxh6 {[%clk 0:02:46.9]} 9... c6 {[%clk
0:02:47.1]} 10. e5 {[%clk 0:02:45.4]} 10... Nd5 {[%clk 0:02:38.3]} 11. Qg7
{[%clk 0:02:38.3]} 11... Rf8 {[%clk 0:02:36.9]} 12. Ne4 {[%clk 0:02:14.3]} 12...
dxe5 {[%clk 0:02:27.8]} 13. dxe5 {[%clk 0:02:13.1]} 13... Qa5 {[%clk 0:02:16.8]}
14. Kb1 {[%clk 0:02:05.8]} 14... Bb7 {[%clk 0:02:09.3]} 15. e6 {[%clk
0:01:50.1]} 15... fxe6 {[%clk 0:01:59.1]} 16. Ng5 {[%clk 0:01:50.5]} 16... Nc5
{[%clk 0:01:35.6]} 17. Nxh7 {[%clk 0:01:45.1]} 17... Rf7 {[%clk 0:01:26.2]} 18.
Qg8+ {[%clk 0:01:44.6]} 18... Kd7 {[%clk 0:01:25.1]} 19. Qxf7 {[%clk 0:01:45.2]}
1-0

[Event "Early-Titled-Tuesday-Blitz-March-05-2024"]
[Site "Chess.com"]
[Date "2024.03.05"]
[Round "1"]
[White "ProChessWICTH"]
[Black "Fjal"]
[Result "1-0"]
[WhiteElo "2618"]
[BlackElo "2314"]
[TimeControl "180+1"]
[EndTime "8:04:08 PST"]
[Termination "ProChessWICTH won by resignation"]

1. e4 {[%clk 0:03:00.9]} 1... d6 {[%clk 0:02:52.6]} 2. d4 {[%clk 0:03:00.5]}
2... Nf6 {[%clk 0:02:48.8]} 3. Nc3 {[%clk 0:03:00.8]} 3... g6 {[%clk 0:02:42]}
4. f4 {[%clk 0:03:01.1]} 4... Bg7 {[%clk 0:02:41.6]} 5. Nf3 {[%clk 0:03:01.2]}
5... O-O {[%clk 0:02:41.7]} 6. Bd3 {[%clk 0:03:01.9]} 6... c5 {[%clk 0:02:40.9]}
7. dxc5 {[%clk 0:02:59.9]} 7... dxc5 {[%clk 0:02:41.8]} 8. O-O {[%clk 0:03:00]}
8... Nc6 {[%clk 0:02:42.2]} 9. Kh1 {[%clk 0:02:56.5]} 9... Bg4 {[%clk
0:02:40.5]} 10. h3 {[%clk 0:02:47.9]} 10... Bxf3 {[%clk 0:02:40.5]} 11. Qxf3
{[%clk 0:02:48.8]} 11... Nd4 {[%clk 0:02:41]} 12. Qf2 {[%clk 0:02:49]} 12... a6
{[%clk 0:02:33.3]} 13. Be3 {[%clk 0:02:44.8]} 13... e6 {[%clk 0:02:26.1]} 14. e5
{[%clk 0:02:43.8]} 14... Nd5 {[%clk 0:02:25.7]} 15. Bxd4 {[%clk 0:02:41.6]}
15... cxd4 {[%clk 0:02:26.6]} 16. Qxd4 {[%clk 0:02:39.1]} 16... Nxc3 {[%clk
0:02:16.7]} 17. Qxc3 {[%clk 0:02:40]} 17... Rc8 {[%clk 0:02:17.1]} 18. Qb3
{[%clk 0:02:35.1]} 18... b5 {[%clk 0:02:14.7]} 19. a4 {[%clk 0:02:34.6]} 19...
Qd4 {[%clk 0:01:38.9]} 20. axb5 {[%clk 0:02:22.6]} 20... axb5 {[%clk 0:01:38.9]}
21. Bxb5 {[%clk 0:02:20.6]} 21... Rb8 {[%clk 0:01:39.1]} 22. c4 {[%clk 0:02:20]}
22... Rfc8 {[%clk 0:01:39.3]} 23. Rad1 {[%clk 0:01:52]} 23... Qe4 {[%clk
0:01:37.4]} 24. Qd3 {[%clk 0:01:48.8]} 24... Qa8 {[%clk 0:01:28.7]} 25. Ra1
{[%clk 0:01:43.6]} 25... Qb7 {[%clk 0:01:29]} 26. Ba6 {[%clk 0:01:33.2]} 1-0

[Event "Early-Titled-Tuesday-Blitz-March-05-2024"]
[Site "Chess.com"]
[Date "2024.03.05"]
[Round "1"]
[White "Arystanner"]
[Black "ural58"]
[Result "0-1"]
[WhiteElo "2889"]
[BlackElo "2505"]
[TimeControl "180+1"]
[EndTime "8:04:17 PST"]
[Termination "ural58 won by resignation"]

1. e4 {[%clk 0:03:00.9]} 1... d5 {[%clk 0:02:59.2]} 2. exd5 {[%clk 0:03:01]}
2... Qxd5 {[%clk 0:02:59.2]} 3. Nc3 {[%clk 0:03:01.4]} 3... Qa5 {[%clk 0:02:59]}
4. d4 {[%clk 0:03:02.1]} 4... Nf6 {[%clk 0:02:59.1]} 5. Nf3 {[%clk 0:03:02.9]}
5... Nc6 {[%clk 0:02:59.1]} 6. h3 {[%clk 0:02:55.2]} 6... Ne4 {[%clk 0:02:57.9]}
7. Qd3 {[%clk 0:02:49]} 7... Nxc3 {[%clk 0:02:53.3]} 8. b3 {[%clk 0:02:49.4]}
8... Ne4+ {[%clk 0:02:44.4]} 9. Ke2 {[%clk 0:02:39.8]} 9... Bf5 {[%clk
0:02:32.5]} 10. Ke3 {[%clk 0:02:36.7]} 10... Ng3 {[%clk 0:02:26.4]} 11. Qd1
{[%clk 0:02:27.2]} 11... Nxh1 {[%clk 0:02:22.1]} 12. Bc4 {[%clk 0:02:27.4]}
12... O-O-O {[%clk 0:02:17.5]} 13. Qxh1 {[%clk 0:02:27.3]} 13... e5 {[%clk
0:02:14.2]} 14. d5 {[%clk 0:02:27.1]} 14... Bc5+ {[%clk 0:02:12.9]} 15. Ke2
{[%clk 0:02:26.5]} 15... Nd4+ {[%clk 0:02:12.8]} 16. Nxd4 {[%clk 0:02:27.2]}
16... Bxd4 {[%clk 0:02:12.8]} 17. Bd2 {[%clk 0:02:27.2]} 17... Qb6 {[%clk
0:02:07.7]} 18. Rd1 {[%clk 0:02:26.6]} 18... Bxf2 {[%clk 0:02:06.5]} 19. Qf1
{[%clk 0:02:27]} 19... Bxc2 {[%clk 0:02:04.1]} 20. Rc1 {[%clk 0:02:26.3]} 20...
Be4 {[%clk 0:02:03.1]} 21. Qxf2 {[%clk 0:02:03.8]} 21... Qxf2+ {[%clk
0:02:01.7]} 22. Kxf2 {[%clk 0:02:04.7]} 22... Bxd5 {[%clk 0:02:01.7]} 23. Be2
{[%clk 0:02:05.3]} 23... Bxg2 {[%clk 0:01:49.4]} 24. Bc3 {[%clk 0:02:05.6]}
24... Bxh3 {[%clk 0:01:46.6]} 25. Bxe5 {[%clk 0:02:05.9]} 25... c6 {[%clk
0:01:42.1]} 26. b4 {[%clk 0:02:05.1]} 26... f6 {[%clk 0:01:41.1]} 27. Bg3 {[%clk
0:02:04.9]} 27... Rd2 {[%clk 0:01:38.9]} 28. Ke3 {[%clk 0:01:58]} 28... Rxa2
{[%clk 0:01:37.3]} 29. Bc4 {[%clk 0:01:58.6]} 29... Re8+ {[%clk 0:01:36.3]} 30.
Kf3 {[%clk 0:01:58.3]} 30... Ra3+ {[%clk 0:01:33.7]} 31. Kf2 {[%clk 0:01:57.8]}
31... Be6 {[%clk 0:01:26]} 32. Be2 {[%clk 0:01:57.6]} 32... Ra2 {[%clk
0:01:19.8]} 0-1

[Event "Early-Titled-Tuesday-Blitz-March-05-2024"]
[Site "Chess.com"]
[Date "2024.03.05"]
[Round "1"]
[White "Kildepiotr"]
[Black "inagreV"]
[Result "1-0"]
[WhiteElo "2688"]
[BlackElo "2385"]
[TimeControl "180+1"]
[EndTime "8:04:20 PST"]
[Termination "Kildepiotr won by resignation"]

1. Nf3 {[%clk 0:03:00.9]} 1... Nf6 {[%clk 0:02:59.7]} 2. g3 {[%clk 0:03:00.2]}
2... b6 {[%clk 0:02:58.7]} 3. Bg2 {[%clk 0:03:00.4]} 3... Bb7 {[%clk 0:02:59.6]}
4. O-O {[%clk 0:03:00.8]} 4... g6 {[%clk 0:02:59.9]} 5. c4 {[%clk 0:03:01.5]}
5... Bg7 {[%clk 0:03:00.2]} 6. Nc3 {[%clk 0:03:01.8]} 6... O-O {[%clk
0:02:59.5]} 7. d3 {[%clk 0:03:02.3]} 7... c5 {[%clk 0:02:58.4]} 8. e4 {[%clk
0:03:02.3]} 8... d6 {[%clk 0:02:58.6]} 9. Ne1 {[%clk 0:03:02.1]} 9... Nc6 {[%clk
0:02:57.8]} 10. f4 {[%clk 0:03:02.3]} 10... a6 {[%clk 0:02:55.1]} 11. Nc2 {[%clk
0:03:00.1]} 11... Ne8 {[%clk 0:02:42]} 12. Kh1 {[%clk 0:02:56.9]} 12... Nc7
{[%clk 0:02:41.8]} 13. f5 {[%clk 0:02:55.5]} 13... b5 {[%clk 0:02:37.6]} 14. Be3
{[%clk 0:02:45.8]} 14... bxc4 {[%clk 0:02:31.7]} 15. dxc4 {[%clk 0:02:46.7]}
15... Bxc3 {[%clk 0:02:10.8]} 16. bxc3 {[%clk 0:02:46.5]} 16... Ne5 {[%clk
0:02:11.1]} 17. Qe2 {[%clk 0:02:41.6]} 17... a5 {[%clk 0:02:03]} 18. Bh6 {[%clk
0:02:40.6]} 18... Re8 {[%clk 0:02:00.2]} 19. Ne3 {[%clk 0:02:40.1]} 19... f6
{[%clk 0:01:56.7]} 20. fxg6 {[%clk 0:02:33.8]} 20... hxg6 {[%clk 0:01:55]} 21.
h4 {[%clk 0:02:29.4]} 21... Kf7 {[%clk 0:01:37.6]} 22. Rab1 {[%clk 0:02:28.7]}
22... Ba6 {[%clk 0:01:34.2]} 23. Bf4 {[%clk 0:02:21.1]} 23... Nd7 {[%clk
0:01:09.8]} 24. Bh3 {[%clk 0:02:06.2]} 24... Rh8 {[%clk 0:01:06.4]} 25. Kg1
{[%clk 0:02:00.8]} 25... g5 {[%clk 0:00:55]} 26. Bxg5 {[%clk 0:01:59.2]} 1-0

[Event "Early-Titled-Tuesday-Blitz-March-05-2024"]
[Site "Chess.com"]
[Date "2024.03.05"]
[Round "1"]
[White "JoachimBN"]
[Black "carloseduar100"]
[Result "1-0"]
[WhiteElo "2668"]
[BlackElo "2368"]
[TimeControl "180+1"]
[EndTime "8:04:30 PST"]
[Termination "JoachimBN won by resignation"]

1. d4 {[%clk 0:02:59.4]} 1... d5 {[%clk 0:02:59.7]} 2. c4 {[%clk 0:02:51.2]}
2... e5 {[%clk 0:02:56.7]} 3. dxe5 {[%clk 0:02:50.8]} 3... d4 {[%clk 0:02:45.6]}
4. Nf3 {[%clk 0:02:50.6]} 4... Nc6 {[%clk 0:02:45.6]} 5. a3 {[%clk 0:02:50.6]}
5... Nge7 {[%clk 0:02:44.7]} 6. e3 {[%clk 0:02:48.9]} 6... Bg4 {[%clk
0:02:44.1]} 7. exd4 {[%clk 0:02:48.6]} 7... Bxf3 {[%clk 0:02:43.8]} 8. Qxf3
{[%clk 0:02:49.5]} 8... Qxd4 {[%clk 0:02:43.8]} 9. Nc3 {[%clk 0:02:44.6]} 9...
Qxe5+ {[%clk 0:02:43.5]} 10. Be2 {[%clk 0:02:09.3]} 10... O-O-O {[%clk
0:02:26.2]} 11. O-O {[%clk 0:02:01.9]} 11... Nd4 {[%clk 0:02:23.7]} 12. Qh3+
{[%clk 0:01:59.7]} 12... f5 {[%clk 0:02:22.5]} 13. Bd1 {[%clk 0:00:29.9]} 13...
Kb8 {[%clk 0:01:56.5]} 14. Be3 {[%clk 0:00:27]} 14... Nc2 {[%clk 0:01:53.8]} 15.
Bxc2 {[%clk 0:00:25.4]} 1-0

[Event "Early-Titled-Tuesday-Blitz-March-05-2024"]
[Site "Chess.com"]
[Date "2024.03.05"]
[Round "1"]
[White "maurovargas01"]
[Black "andrzej"]
[Result "0-1"]
[WhiteElo "1836"]
[BlackElo "2528"]
[TimeControl "180+1"]
[EndTime "8:04:30 PST"]
[Termination "andrzej won by resignation"]

1. e4 {[%clk 0:02:57.6]} 1... e5 {[%clk 0:02:59.9]} 2. Nf3 {[%clk 0:02:54.6]}
2... Nf6 {[%clk 0:03:00.1]} 3. Bc4 {[%clk 0:02:51.1]} 3... Nxe4 {[%clk
0:02:58.4]} 4. Nxe5 {[%clk 0:02:48.6]} 4... d5 {[%clk 0:02:55]} 5. Bb3 {[%clk
0:02:44.3]} 5... Be7 {[%clk 0:02:37.2]} 6. O-O {[%clk 0:02:41.3]} 6... O-O
{[%clk 0:02:36.9]} 7. f3 {[%clk 0:02:40.7]} 7... Nf6 {[%clk 0:02:29.1]} 8. d4
{[%clk 0:02:38.6]} 8... h6 {[%clk 0:02:23.6]} 9. Re1 {[%clk 0:02:25.5]} 9... Bf5
{[%clk 0:02:22.5]} 10. Be3 {[%clk 0:02:22.8]} 10... Nbd7 {[%clk 0:02:14.8]} 11.
f4 {[%clk 0:02:18.8]} 11... c6 {[%clk 0:02:13.1]} 12. h3 {[%clk 0:02:13]} 12...
Ne4 {[%clk 0:02:07.8]} 13. g4 {[%clk 0:02:05.6]} 13... Bh7 {[%clk 0:02:08]} 14.
Nd2 {[%clk 0:01:57.5]} 14... f6 {[%clk 0:02:05.2]} 15. Nef3 {[%clk 0:01:45.8]}
15... Kh8 {[%clk 0:02:01.9]} 16. f5 {[%clk 0:01:44.5]} 16... Bd6 {[%clk
0:01:56.9]} 17. Nh4 {[%clk 0:01:41.8]} 17... Bg3 {[%clk 0:01:52.6]} 18. Rf1
{[%clk 0:01:37.1]} 18... Bxh4 {[%clk 0:01:51.1]} 19. Nf3 {[%clk 0:01:33.3]}
19... Bg3 {[%clk 0:01:49.7]} 20. Kg2 {[%clk 0:01:33.1]} 20... Bb8 {[%clk
0:01:47.8]} 21. h4 {[%clk 0:01:32.2]} 21... Qc7 {[%clk 0:01:47.1]} 22. Qd2
{[%clk 0:01:25.1]} 22... Qg3+ {[%clk 0:01:44.6]} 23. Kh1 {[%clk 0:01:24.2]}
23... Qxg4 {[%clk 0:01:44.4]} 24. Qh2 {[%clk 0:01:18.3]} 24... Ng3+ {[%clk
0:01:42.2]} 25. Kg2 {[%clk 0:01:14.8]} 25... Nxf5+ {[%clk 0:01:40.5]} 26. Kf2
{[%clk 0:01:10]} 26... Bxh2 {[%clk 0:01:40.5]} 27. Nxh2 {[%clk 0:01:10.9]} 27...
Qxh4+ {[%clk 0:01:39.4]} 0-1